bitfinex-derivatives/quotes_BTCF0:USTF0_20241021
["timestamp","ask_amount","ask_price","bid_price","bid_amount"]
[1729525519762,0.076655,66991.0,66990.0,0.0654]
[1729525519971,0.09916232,66991.0,66990.0,0.0654]
[1729525520168,0.09716232,66991.0,66990.0,0.0644]
[1729525520372,0.09916232,66991.0,66990.0,0.0654]
[1729525521065,0.09916232,66991.0,66990.0,0.0644]
[1729525521470,0.09916232,66991.0,66990.0,0.0634]
[1729525521678,0.09916232,66991.0,66990.0,0.0644]
[1729525522365,0.09916232,66991.0,66990.0,0.0634]
[1729525522566,0.09916232,66991.0,66990.0,0.0644]
[1729525522866,0.09716232,66991.0,66990.0,0.0564]
[1729525523064,0.09716232,66991.0,66990.0,0.0574]
[1729525523065,0.09816232,66991.0,66990.0,0.0574]
[1729525523271,0.00076,66997.0,66996.0,0.074649]
[1729525523566,0.00027825,67002.0,67001.0,0.074644]
[1729525523763,0.07492125,67002.0,67001.0,0.074644]
[1729525524676,0.074646,66999.0,66998.0,0.3608]
[1729525526174,0.074646,66999.0,66998.0,0.3618]
[1729525526374,0.07492225,67002.0,66998.0,0.3618]
[1729525526582,0.07492225,67002.0,67001.0,0.074644]
[1729525526777,0.07492225,67002.0,67001.0,0.075644]
[1729525527164,0.00027825,67002.0,67001.0,0.075644]
[1729525527367,0.00027825,67002.0,66998.0,0.3618]
[1729525527368,0.074633,67012.0,67011.0,0.074631]
[1729525527874,0.02647315,67012.0,67011.0,0.074631]
[1729525528070,0.074624,67019.0,67013.0,0.074631]
[1729525528275,0.074622,67021.0,67020.0,0.074621]
[1729525529179,0.10198288,67021.0,67020.0,0.074621]
[1729525529681,0.02736088,67021.0,67020.0,0.074621]
[1729525529884,0.00082738,67025.0,67024.0,0.074618]
[1729525530082,0.0304,67037.0,67029.0,0.074612]
[1729525530285,0.02722152,67036.0,67031.0,0.3608]
[1729525530481,0.074609,67032.0,67031.0,0.3608]
[1729525531878,0.074609,67032.0,67031.0,0.435411]
[1729525532995,0.074609,67032.0,67031.0,0.436411]
[1729525533190,0.074609,67032.0,67031.0,0.437411]
[1729525533681,0.0007941,67036.0,67035.0,0.074606]
[1729525533682,0.0754001,67036.0,67035.0,0.074606]
[1729525534579,0.0007941,67036.0,67035.0,0.074606]
[1729525535086,0.02664263,67037.0,67036.0,0.074605]
[1729525535278,0.074603,67039.0,67038.0,0.074603]
[1729525535678,0.074603,67039.0,67038.0,0.522123]
[1729525536293,0.074599,67044.0,67035.0,0.3628]
[1729525536481,0.074605,67036.0,67035.0,0.3628]
[1729525536788,0.074605,67036.0,67027.0,0.15036]
[1729525536990,0.074616,67028.0,67027.0,0.224973]
[1729525537486,0.07461,67032.0,67031.0,0.074609]
[1729525537695,0.07461,67032.0,67031.0,0.435409]
[1729525538279,0.07461,67032.0,67031.0,0.427409]
[1729525538490,0.074604,67038.0,67037.0,0.074602]
[1729525538686,0.074604,67038.0,67037.0,0.435402]
[1729525539284,0.00033712,67047.0,67037.0,0.435402]
[1729525539486,0.0746,67043.0,67042.0,0.074596]
[1729525540477,0.0746,67043.0,67037.0,0.3618]
[1729525540992,0.074605,67036.0,67035.0,0.3608]
[1729525541880,0.074605,67036.0,67035.0,0.435406]
[1729525542489,0.074605,67036.0,67035.0,0.3608]
[1729525542691,0.074605,67036.0,67035.0,0.3618]
[1729525543890,0.074605,67036.0,67035.0,0.3628]
[1729525547488,0.074605,67036.0,67035.0,0.437406]
[1729525551307,0.074605,67036.0,67035.0,0.3628]
[1729525551902,0.074605,67036.0,67035.0,0.437406]
[1729525552698,0.074605,67036.0,67035.0,0.436406]
[1729525553092,0.074605,67036.0,67035.0,0.437406]
[1729525554011,0.074605,67036.0,67035.0,0.429406]
[1729525554197,0.074605,67036.0,67035.0,0.428406]
[1729525554509,0.074605,67036.0,67035.0,0.429406]
[1729525554807,0.074605,67036.0,67035.0,0.3548]
[1729525555012,0.107005,67036.0,67035.0,0.3548]
[1729525561303,0.074605,67036.0,67035.0,0.429406]
[1729525561906,0.074586,67053.0,67035.0,0.790206]
[1729525561907,0.00033712,67047.0,67035.0,0.790206]
[1729525562213,0.10210882,67047.0,67046.0,0.3608]
[1729525562507,0.10210882,67047.0,67041.0,0.3608]
[1729525562508,0.074598,67042.0,67041.0,0.3608]
[1729525562901,0.074598,67042.0,67041.0,0.435399]
[1729525563706,0.074595,67045.0,67044.0,0.074594]
[1729525565404,0.074595,67045.0,67044.0,0.075594]
[1729525566005,0.00033712,67047.0,67046.0,0.074594]
[1729525566505,0.07493012,67047.0,67046.0,0.074594]
[1729525567300,0.07493012,67047.0,67046.0,0.075594]
[1729525567713,0.07493012,67047.0,67046.0,0.074594]
[1729525569211,0.00033712,67047.0,67046.0,0.066594]
[1729525569417,0.00033712,67047.0,67046.0,0.514034]
[1729525569611,0.00033712,67047.0,67046.0,0.515034]
[1729525570003,0.00033712,67047.0,67046.0,0.514034]
[1729525570308,0.10130164,67054.0,67053.0,0.074586]
[1729525570504,0.10130164,67054.0,67053.0,0.593226]
[1729525570707,0.10130164,67054.0,67053.0,0.435386]
[1729525571022,0.10130164,67054.0,67053.0,0.51972]
[1729525572209,0.10130164,67054.0,67053.0,0.3608]
[1729525572817,0.074585,67054.0,67053.0,0.435386]
[1729525573816,0.074585,67054.0,67053.0,0.436386]
[1729525574122,0.074585,67054.0,67053.0,0.437386]
[1729525579526,0.074585,67054.0,67053.0,0.798186]
[1729525581716,0.00309692,67057.0,67053.0,0.798186]
[1729525581924,0.07767992,67057.0,67056.0,0.074583]
[1729525582827,0.07767992,67057.0,67056.0,0.233503]
[1729525583127,0.00309692,67057.0,67056.0,0.234503]
[1729525583625,0.00309692,67057.0,67056.0,0.26079995]
[1729525584421,0.00309692,67057.0,67056.0,0.70919995]
[1729525584733,0.00309692,67057.0,67056.0,0.076583]
[1729525584920,0.00309692,67057.0,67056.0,0.235503]
[1729525584921,0.07767892,67057.0,67056.0,0.235503]
[1729525585126,0.07767892,67057.0,67056.0,0.075583]
[1729525585321,0.07767892,67057.0,67056.0,0.002]
[1729525588138,0.07767892,67057.0,67056.0,0.076583]
[1729525589233,0.07767892,67057.0,67056.0,0.002]
[1729525589448,0.0746,67040.0,67039.0,0.00223707]
[1729525589731,0.0746,67040.0,67026.0,0.3608]
[1729525589732,0.3608,67041.0,67026.0,0.3608]
[1729525590031,0.074611,67031.0,67026.0,0.3608]
[1729525590220,0.0305,67039.0,67026.0,0.435416]
[1729525590628,0.074612,67030.0,67026.0,0.435416]
[1729525590931,0.074613,67029.0,67026.0,0.439416]
[1729525591334,0.074613,67029.0,67027.0,0.074614]
[1729525591534,0.0305,67039.0,67026.0,0.36556]
[1729525591841,0.074605,67037.0,67034.0,0.074606]
[1729525592129,0.3608,67056.0,67032.0,0.3608]
[1729525592130,0.0309,67053.0,67032.0,0.3608]
[1729525592330,0.074595,67045.0,67044.0,0.3608]
[1729525593029,0.074595,67045.0,67044.0,0.435396]
[1729525593332,0.0333,67052.0,67044.0,0.3608]
[1729525593527,0.074592,67048.0,67047.0,0.074592]
[1729525595120,0.080592,67048.0,67047.0,0.074592]
[1729525595322,0.074595,67045.0,67044.0,0.3608]
[1729525596936,0.074595,67045.0,67044.0,0.3628]
[1729525597637,0.074595,67045.0,67044.0,0.435396]
[1729525597834,0.084595,67045.0,67044.0,0.436396]
[1729525598029,0.094595,67045.0,67044.0,0.437396]
[1729525598225,0.02,67045.0,67044.0,0.798196]
[1729525598430,0.01,67045.0,67044.0,0.797196]
[1729525598631,0.014,67045.0,67044.0,0.797196]
[1729525598935,0.088595,67045.0,67044.0,0.7226]
[1729525599130,0.084595,67045.0,67044.0,0.3618]
[1729525599542,0.087595,67045.0,67044.0,0.3618]
[1729525600349,0.11896893,67045.0,67044.0,0.3628]
[1729525600733,0.11896893,67045.0,67044.0,0.3548]
[1729525607146,0.11896893,67045.0,67044.0,0.429396]
[1729525607357,0.04437393,67045.0,67044.0,0.429396]
[1729525609947,0.11896893,67045.0,67044.0,0.429396]
[1729525614145,0.04437393,67045.0,67044.0,0.429396]
[1729525614652,0.018,67045.0,67044.0,0.876876]
[1729525615951,0.018,67045.0,67044.0,0.8954893]
[1729525616947,0.018,67045.0,67044.0,0.4480093]
[1729525617156,0.092595,67045.0,67044.0,0.4480093]
[1729525618153,0.092595,67045.0,67044.0,0.3468]
[1729525621246,0.11934305,67045.0,67044.0,0.3468]
[1729525621952,0.11934305,67045.0,67044.0,0.002]
[1729525624352,0.11934305,67045.0,67044.0,0.076596]
[1729525624353,0.092595,67045.0,67044.0,0.076596]
[1729525625655,0.01,67045.0,67044.0,0.077596]
[1729525626449,0.012,67045.0,67044.0,0.075596]
[1729525626958,0.002,67045.0,67044.0,0.074596]
[1729525627257,0.002,67045.0,67044.0,0.075596]
[1729525627649,0.002,67045.0,67044.0,0.435396]
[1729525628352,0.003,67045.0,67044.0,0.435396]
[1729525628655,0.001,67045.0,67044.0,0.437396]
[1729525629258,0.001,67045.0,67044.0,0.435396]
[1729525629460,0.001,67045.0,67044.0,0.437396]
[1729525629959,0.02667503,67052.0,67051.0,0.074588]
[1729525630150,0.07767892,67057.0,67056.0,0.074583]
[1729525630459,0.11421645,67057.0,67056.0,0.074583]
[1729525630653,0.14048288,67057.0,67056.0,0.074583]
[1729525631448,0.14048288,67057.0,67056.0,0.066583]
[1729525631854,0.11294535,67057.0,67056.0,0.067583]
[1729525632159,0.01209692,67057.0,67056.0,0.067583]
[1729525632950,0.01209692,67057.0,67056.0,0.429383]
[1729525632951,0.01909692,67057.0,67056.0,0.429383]
[1729525633260,0.01909692,67057.0,67056.0,0.09566301]
[1729525633454,0.01909692,67057.0,67056.0,0.45646301]
[1729525634651,0.01209692,67057.0,67056.0,0.45546301]
[1729525634846,0.01909692,67057.0,67056.0,0.45646301]
[1729525636350,0.01909692,67057.0,67056.0,0.3628]
[1729525636351,0.09367892,67057.0,67056.0,0.3628]
[1729525636558,0.074595,67045.0,67044.0,0.3608]
[1729525637352,0.074595,67045.0,67044.0,0.435396]
[1729525638252,0.074595,67045.0,67044.0,0.438396]
[1729525639656,0.074595,67045.0,67044.0,0.437396]
[1729525639855,0.083595,67045.0,67044.0,0.438396]
[1729525640260,0.074595,67045.0,67044.0,0.437396]
[1729525640571,0.084595,67045.0,67044.0,0.438396]
[1729525641071,0.082595,67045.0,67044.0,0.436396]
[1729525641965,0.083595,67045.0,67044.0,0.436396]
[1729525642357,0.0423,67053.0,67044.0,0.436396]
[1729525642358,0.00197953,67068.0,67044.0,1.40928]
[1729525642569,0.00197953,67068.0,67056.0,0.796183]
[1729525643155,0.00197953,67068.0,67056.0,0.946743]
[1729525643156,0.02175313,67065.0,67056.0,0.946743]
[1729525643357,0.02175313,67065.0,67052.0,0.00755959]
[1729525643358,0.3608,67061.0,67053.0,0.15056]
[1729525643561,0.074583,67056.0,67050.0,0.3608]
[1729525643868,0.074585,67054.0,67053.0,0.074585]
[1729525644467,0.074585,67054.0,67053.0,0.075585]
[1729525644665,0.041,67056.0,67053.0,0.001]
[1729525644870,0.041,67056.0,67055.0,0.074584]
[1729525645053,0.115583,67056.0,67055.0,0.074584]
[1729525646863,0.13757655,67056.0,67055.0,0.066584]
[1729525647271,0.13757655,67056.0,67055.0,0.067584]
[1729525647859,0.14757655,67056.0,67055.0,0.068584]
[1729525650469,0.14757655,67056.0,67055.0,0.067584]
[1729525650676,0.14757655,67056.0,67055.0,0.068584]
[1729525652885,0.52039355,67056.0,67034.0,0.00076]
[1729525653059,0.074597,67046.0,67045.0,0.074594]
[1729525653271,0.074599,67041.0,67033.0,0.3608]
[1729525653567,0.074599,67041.0,67040.0,0.4354]
[1729525654167,0.074599,67041.0,67040.0,0.4404]
[1729525654770,0.09663909,67041.0,67040.0,0.4404]
[1729525654970,0.09663909,67041.0,67040.0,0.4394]
[1729525655276,0.09663909,67041.0,67040.0,0.4444]
[1729525656663,0.09663909,67041.0,67040.0,0.4394]
[1729525656864,0.09763909,67041.0,67040.0,0.4404]
[1729525657064,0.09763909,67041.0,67040.0,0.4364]
[1729525657271,0.10363909,67041.0,67040.0,0.4374]
[1729525657673,0.09763909,67041.0,67040.0,0.4364]
[1729525657978,0.10663909,67041.0,67040.0,0.4374]
[1729525658881,0.01,67041.0,67040.0,0.4374]
[1729525659181,0.008,67041.0,67040.0,0.7982]
[1729525659393,0.00309692,67057.0,67040.0,1.99624]
[1729525659679,0.00309692,67057.0,67056.0,0.435383]
[1729525659881,0.07767892,67057.0,67056.0,0.435383]
[1729525660073,0.07459,67050.0,67044.0,0.3608]
[1729525660271,0.074593,67047.0,67045.0,0.074595]
[1729525660479,0.00309692,67057.0,67044.0,0.72236]
[1729525660776,0.00309692,67057.0,67052.0,0.3608]
[1729525660980,0.00309692,67057.0,67056.0,0.074583]
[1729525660981,0.07767892,67057.0,67056.0,0.074583]
[1729525661186,0.00309692,67057.0,67056.0,0.074583]
[1729525661869,0.01409692,67057.0,67056.0,0.074583]
[1729525662278,0.01409692,67057.0,67056.0,0.066583]
[1729525663268,0.01409692,67057.0,67056.0,0.067583]
[1729525663671,0.08867892,67057.0,67056.0,0.001]
[1729525663867,0.074586,67053.0,67052.0,0.72236]
[1729525664080,0.074586,67053.0,67052.0,0.7216]
[1729525665469,0.076586,67053.0,67052.0,0.7226]
[1729525665679,0.076586,67053.0,67052.0,0.797187]
[1729525665984,0.075586,67053.0,67052.0,0.797187]
[1729525666479,0.075586,67053.0,67052.0,0.798187]
[1729525666683,0.001,67053.0,67052.0,0.798187]
[1729525667586,0.00309692,67057.0,67056.0,0.074583]
[1729525670175,0.00309692,67057.0,67056.0,0.075583]
[1729525670689,0.00509692,67057.0,67056.0,0.076583]
[1729525671580,0.07967892,67057.0,67056.0,0.076583]
[1729525672187,0.07967892,67057.0,67056.0,0.002]
[1729525673283,0.15791967,67057.0,67056.0,0.002]
[1729525673786,0.12137892,67057.0,67056.0,0.002]
[1729525675288,0.14348793,67057.0,67056.0,0.002]
[1729525677677,0.14348793,67057.0,67051.0,0.068588]
[1729525677884,0.074587,67052.0,67051.0,0.068588]
[1729525679088,0.074787,67052.0,67051.0,0.068788]
[1729525680579,0.077787,67052.0,67051.0,0.068788]
[1729525688696,0.0032,67052.0,67051.0,0.876988]
[1729525689392,0.0032,67052.0,67051.0,0.429588]
[1729525689996,0.077787,67052.0,67051.0,0.429588]
[1729525690294,0.077787,67052.0,67051.0,0.361]
[1729525692000,0.077787,67052.0,67051.0,0.435588]
[1729525693201,0.077787,67052.0,67051.0,0.427588]
[1729525693399,0.077787,67052.0,67051.0,0.353]
[1729525693589,0.074592,67048.0,67046.0,0.3608]
[1729525693790,0.074592,67048.0,67047.0,0.07479]
[1729525694294,0.0032,67052.0,67051.0,0.074588]
[1729525694492,0.0034,67052.0,67051.0,0.074788]
[1729525694698,0.0004,67052.0,67051.0,0.074788]
[1729525695603,0.074987,67052.0,67051.0,0.074788]
[1729525697304,0.11152762,67052.0,67051.0,0.074788]
[1729525697502,0.11452762,67052.0,67051.0,0.074788]
[1729525700501,0.13648185,67052.0,67051.0,0.074788]
[1729525700896,0.09994123,67052.0,67051.0,0.074788]
[1729525703505,0.077987,67052.0,67051.0,0.074788]
[1729525707213,0.0034,67052.0,67051.0,0.074788]
[1729525708210,0.0034,67052.0,67051.0,0.114388]
[1729525708514,0.0034,67052.0,67051.0,0.106388]
[1729525711705,0.0034,67052.0,67051.0,0.553788]
[1729525712416,0.00309692,67057.0,67056.0,0.074583]
[1729525712599,0.00309692,67057.0,67056.0,0.435983]
[1729525712803,0.00079528,67059.0,67056.0,0.883383]
[1729525713003,0.00079528,67059.0,67058.0,0.07458]
[1729525713211,0.00079528,67059.0,67058.0,0.23474]
[1729525713402,0.00079528,67059.0,67058.0,0.6821]
[1729525714911,0.00079528,67059.0,67058.0,0.6831]
[1729525715214,0.00079528,67059.0,67058.0,0.6841]
[1729525716003,0.00079528,67059.0,67058.0,0.7243]
[1729525720514,0.00079528,67059.0,67058.0,0.58618348]
[1729525720714,0.00079528,67059.0,67058.0,0.74570348]
[1729525722317,0.00079528,67059.0,67058.0,0.58618348]
[1729525722518,0.00079528,67059.0,67058.0,0.74570348]
[1729525723222,0.00079528,67059.0,67058.0,0.75036819]
[1729525723818,0.00079528,67059.0,67058.0,0.74236819]
[1729525724313,2.8e-07,67059.0,67058.0,1.34236819]
[1729525726024,2.8e-07,67059.0,67058.0,1.34636819]
[1729525726219,2.8e-07,67059.0,67058.0,1.18218348]
[1729525726521,2.8e-07,67059.0,67058.0,1.34170348]
[1729525726907,2.8e-07,67059.0,67058.0,1.34636795]
[1729525727316,2.8e-07,67059.0,67058.0,1.35036787]
[1729525728714,2.8e-07,67059.0,67058.0,1.59796787]
[1729525729123,0.00048271,67070.0,67067.0,0.07457]
[1729525729313,0.00048271,67070.0,67067.0,0.79677]
[1729525729509,0.00217953,67068.0,67067.0,1.24409]
[1729525731416,0.00217953,67068.0,67067.0,1.84409]
[1729525731918,0.00271009,67079.0,67078.0,0.074558]
[1729525732217,0.00291009,67079.0,67078.0,0.955678]
[1729525732424,0.00291009,67079.0,67078.0,0.956478]
[1729525733010,0.00291009,67079.0,67078.0,0.957478]
[1729525733525,0.00291009,67079.0,67078.0,0.797958]
[1729525733734,0.00291009,67079.0,67078.0,0.957478]
[1729525733928,0.00291009,67079.0,67078.0,0.958478]
[1729525734222,0.00291009,67079.0,67078.0,0.82030386]
[1729525734223,0.07746709,67079.0,67078.0,0.82030386]
[1729525735444,0.07746709,67079.0,67078.0,0.958478]
[1729525735632,0.00291009,67079.0,67078.0,0.958478]
[1729525736629,0.00291009,67079.0,67078.0,0.798958]
[1729525736838,0.00291009,67079.0,67078.0,0.958438]
[1729525737926,0.00291009,67079.0,67078.0,0.798958]
[1729525738143,0.00291009,67079.0,67078.0,0.958438]
[1729525739233,0.00291009,67079.0,67078.0,0.950438]
[1729525741049,0.00291009,67079.0,67078.0,0.790958]
[1729525741240,0.00291009,67079.0,67078.0,0.946718]
[1729525741437,0.00291009,67079.0,67078.0,0.0028]
[1729525741641,0.074565,67073.0,67072.0,0.074565]
[1729525741941,0.074565,67073.0,67072.0,0.074765]
[1729525742145,0.07516501,67073.0,67072.0,0.074765]
[1729525742961,0.07516501,67073.0,67072.0,0.075765]
[1729525743928,0.07616501,67073.0,67072.0,0.076765]
[1729525744434,0.074565,67072.0,67071.0,0.3608]
[1729525744636,0.074565,67072.0,67067.0,0.0006]
[1729525744637,0.94917504,67072.0,67067.0,0.0006]
[1729525744840,0.94917504,67072.0,67061.0,0.074576]
[1729525744841,0.074577,67062.0,67061.0,0.074576]
[1729525745040,0.00060001,67068.0,67056.0,0.0006]
[1729525745344,0.0008,67059.0,67058.0,0.075179]
[1729525746848,0.02207187,67059.0,67058.0,0.075179]
[1729525747045,0.09665087,67059.0,67058.0,0.075179]
[1729525747352,0.075379,67059.0,67058.0,0.080179]
[1729525747737,0.075379,67059.0,67058.0,0.085179]
[1729525748443,0.0008,67059.0,67058.0,0.085179]
[1729525749044,0.075379,67059.0,67058.0,0.085179]
[1729525749236,0.075379,67059.0,67058.0,0.0106]
[1729525749439,0.075379,67059.0,67058.0,0.08518]
[1729525750438,0.105679,67059.0,67058.0,0.08518]
[1729525751751,0.105679,67059.0,67058.0,0.0106]
[1729525752144,0.553039,67059.0,67058.0,0.0106]
[1729525753551,0.105679,67059.0,67058.0,0.0106]
[1729525753949,0.553039,67059.0,67058.0,0.0106]
[1729525754654,0.553039,67059.0,67058.0,0.0026]
[1729525754855,0.105679,67059.0,67058.0,0.0026]
[1729525755147,0.105679,67059.0,67058.0,0.07718]
[1729525757245,0.0311,67059.0,67058.0,0.07718]
[1729525757942,0.105679,67059.0,67058.0,0.07718]
[1729525758553,0.075379,67059.0,67058.0,0.07718]
[1729525762854,0.075379,67059.0,67058.0,0.0026]
[1729525763456,0.075379,67059.0,67058.0,0.07718]
[1729525764153,0.075379,67059.0,67058.0,0.0026]
[1729525764655,0.075379,67059.0,67058.0,0.0331]
[1729525765058,0.075379,67059.0,67058.0,0.10768]
[1729525768658,0.074576,67063.0,67062.0,0.074576]
[1729525768859,0.074576,67063.0,67062.0,0.435376]
[1729525769059,0.074576,67063.0,67062.0,0.361]
[1729525769255,0.074576,67063.0,67062.0,0.0002]
[1729525770161,0.074579,67059.0,67058.0,0.0237]
[1729525770362,0.07517901,67059.0,67058.0,0.0237]
[1729525770856,0.07517901,67059.0,67058.0,0.09828]
[1729525771365,0.07517901,67059.0,67058.0,0.0287]
[1729525771565,0.07517901,67059.0,67058.0,0.0327]
[1729525772458,0.07517901,67059.0,67058.0,0.10728]
[1729525773055,0.074578,67061.0,67058.0,0.0327]
[1729525773256,0.074578,67061.0,67060.0,0.435378]
[1729525773565,0.074578,67061.0,67060.0,0.435578]
[1729525774658,0.074578,67061.0,67060.0,0.437578]
[1729525775760,0.09614831,67061.0,67060.0,0.437578]
[1729525776157,0.074578,67061.0,67060.0,0.437578]
[1729525776458,0.074577,67064.0,67063.0,0.074572]
[1729525776763,0.00100001,67068.0,67063.0,0.074572]
[1729525776967,0.11110667,67067.0,67066.0,0.07457]
[1729525778361,0.11510667,67067.0,67066.0,0.07457]
[1729525779255,0.078574,67067.0,67066.0,0.07457]
[1729525779450,0.081574,67067.0,67066.0,0.07457]
[1729525779860,0.11810561,67067.0,67066.0,0.07457]
[1729525780455,0.11810561,67067.0,67066.0,0.43537]
[1729525783255,0.11810565,67067.0,67066.0,0.43537]
[1729525784172,0.081574,67067.0,67066.0,0.43537]
[1729525784760,0.11810661,67067.0,67066.0,0.43537]
[1729525785156,0.081574,67067.0,67066.0,0.43537]
[1729525785558,0.074572,67066.0,67065.0,0.074572]
[1729525785769,0.074972,67066.0,67065.0,0.074572]
[1729525786668,0.076972,67066.0,67065.0,0.074572]
[1729525787372,0.079972,67066.0,67065.0,0.074572]
[1729525788970,0.074574,67064.0,67063.0,0.0002]
[1729525789175,0.074974,67064.0,67063.0,0.0002]
[1729525797366,0.074974,67064.0,67063.0,0.074775]
[1729525797686,0.11150843,67064.0,67063.0,0.074775]
[1729525798567,0.0004,67064.0,67063.0,0.074775]
[1729525798765,0.00060001,67072.0,67063.0,0.16036]
[1729525798968,0.00060001,67072.0,67071.0,0.074566]
[1729525799166,0.00060001,67072.0,67071.0,0.074966]
[1729525799374,0.07516501,67072.0,67071.0,0.074966]
[1729525799569,0.55897451,67072.0,67071.0,0.0004]
[1729525799777,0.6360645,67072.0,67071.0,0.0004]
[1729525800366,0.074574,67064.0,67063.0,0.0002]
[1729525800569,0.1113035,67064.0,67063.0,0.074775]
[1729525800982,0.1113035,67064.0,67063.0,0.066775]
[1729525801170,0.074575,67063.0,67062.0,0.3608]
[1729525801369,0.074775,67063.0,67062.0,0.3608]
[1729525802482,0.074775,67063.0,67062.0,0.436376]
[1729525802989,0.074775,67063.0,67062.0,0.3618]
[1729525803181,0.074775,67063.0,67062.0,0.001]
[1729525803478,0.074579,67059.0,67058.0,0.0004]
[1729525803685,0.4721156,67059.0,67057.0,0.0004]
[1729525803887,0.0693366,67058.0,67053.0,0.00303628]
[1729525804181,0.1115186,67057.0,67053.0,0.0008]
[1729525804977,0.1115186,67057.0,67056.0,0.0078]
[1729525805488,0.1115186,67057.0,67056.0,0.0148]
[1729525806477,0.1115186,67057.0,67056.0,0.0078]
[1729525806691,0.1125186,67057.0,67056.0,0.0148]
[1729525807070,0.1125186,67057.0,67053.0,0.0008]
[1729525807071,0.4488,67057.0,67053.0,0.0008]
[1729525807274,0.074585,67054.0,67053.0,0.0008]
[1729525807468,0.11152908,67054.0,67053.0,0.0008]
[1729525807679,0.55892908,67054.0,67053.0,0.0008]
[1729525808076,0.03694408,67054.0,67048.0,0.0002]
[1729525808281,0.43599001,67049.0,67048.0,0.0002]
[1729525809587,0.36140001,67049.0,67048.0,0.0002]
[1729525809776,0.00060001,67049.0,67048.0,0.074792]
[1729525810084,0.00060001,67049.0,67048.0,0.136292]
[1729525810789,0.0004,67057.0,67048.0,0.136292]
[1729525810790,0.0002,67063.0,67049.0,0.07459]
[1729525810980,0.074775,67063.0,67062.0,0.074776]
[1729525811186,0.074775,67063.0,67062.0,0.0002]
[1729525811492,0.001,67049.0,67048.0,0.0304]
[1729525811681,0.001,67049.0,67048.0,0.104992]
[1729525811682,0.07599,67049.0,67048.0,0.104992]
[1729525813287,0.07499,67049.0,67048.0,0.0002]
[1729525813779,0.07499,67049.0,67048.0,0.0012]
[1729525813980,0.07699,67049.0,67048.0,0.0012]
[1729525814186,0.07699,67049.0,67048.0,0.075792]
[1729525814486,0.0024,67049.0,67048.0,0.075792]
[1729525814679,0.0034,67049.0,67048.0,0.105392]
[1729525815494,0.07799,67049.0,67048.0,0.105392]
[1729525816480,0.07799,67049.0,67048.0,0.097392]
[1729525817792,0.001,67049.0,67048.0,0.097392]
[1729525818025,0.0002,67063.0,67062.0,0.074576]
[1729525818181,0.0004,67065.0,67063.0,0.074575]
[1729525818381,0.0004,67065.0,67062.0,0.0616]
[1729525818582,0.07596501,67073.0,67064.0,0.074774]
[1729525818791,0.07596501,67073.0,67071.0,0.435766]
[1729525818792,0.07596401,67073.0,67071.0,0.435766]
[1729525819092,0.07516501,67072.0,67071.0,0.435766]
[1729525819292,0.43596501,67072.0,67071.0,0.0004]
[1729525819591,0.07516501,67072.0,67071.0,0.0004]
[1729525820685,0.52244501,67072.0,67071.0,0.0004]
[1729525821086,0.09716501,67072.0,67071.0,0.0024]
[1729525821399,0.074573,67065.0,67064.0,0.0002]
[1729525821698,0.074773,67065.0,67064.0,0.0002]
[1729525822604,0.11130817,67065.0,67064.0,0.0002]
[1729525822787,0.074773,67065.0,67064.0,0.0002]
[1729525823695,0.079773,67065.0,67064.0,0.0002]
[1729525823887,0.079773,67065.0,67064.0,0.0012]
[1729525824084,0.085773,67065.0,67064.0,0.0012]
[1729525825183,0.091773,67065.0,67064.0,0.0012]
[1729525825893,0.11395313,67065.0,67064.0,0.0012]
[1729525826494,0.10895313,67065.0,67064.0,0.0012]
[1729525826799,0.11995313,67065.0,67064.0,0.0022]
[1729525828792,0.097773,67065.0,67064.0,0.076774]
[1729525829086,0.097773,67065.0,67064.0,0.0022]
[1729525829087,0.545093,67065.0,67064.0,0.0022]
[1729525829281,0.545093,67065.0,67047.0,0.0006]
[1729525829282,0.074582,67057.0,67047.0,0.0006]
[1729525829587,0.074592,67048.0,67047.0,0.0006]
[1729525829787,0.435392,67048.0,67047.0,0.0006]
[1729525829994,0.883232,67048.0,67047.0,0.0006]
[1729525831288,0.883232,67048.0,67047.0,0.0016]
[1729525831289,0.90476797,67048.0,67047.0,0.0016]
[1729525831802,0.90476797,67048.0,67038.0,0.07084039]
[1729525831803,0.074602,67039.0,67038.0,0.07084039]
[1729525832293,0.075002,67039.0,67038.0,0.07084039]
[1729525833091,0.074604,67037.0,67036.0,0.361]
[1729525833298,0.074604,67037.0,67036.0,0.435605]
[1729525833495,0.075004,67037.0,67036.0,0.435605]
[1729525834395,0.075004,67037.0,67036.0,0.441605]
[1729525834396,0.077004,67037.0,67036.0,0.441605]
[1729525836587,0.077004,67037.0,67036.0,0.080805]
[1729525846003,0.074587,67052.0,67040.0,0.074599]
[1729525846307,0.074597,67043.0,67042.0,0.3608]
[1729525847090,0.074597,67043.0,67042.0,0.3528]
[1729525847295,0.074598,67042.0,67041.0,0.074599]
[1729525848803,0.075598,67042.0,67041.0,0.078599]
[1729525848995,0.076598,67042.0,67041.0,0.082599]
[1729525849507,0.076598,67042.0,67041.0,0.008]
[1729525849702,0.076598,67042.0,67041.0,0.082599]
[1729525849898,0.079598,67042.0,67041.0,0.078599]
[1729525850409,0.083598,67042.0,67041.0,0.075599]
[1729525851202,0.078598,67042.0,67041.0,0.074599]
[1729525851397,0.084598,67042.0,67041.0,0.075599]
[1729525851799,0.078598,67042.0,67041.0,0.074599]
[1729525852105,0.086598,67042.0,67041.0,0.075599]
[1729525852505,0.086598,67042.0,67041.0,0.001]
[1729525852707,0.082598,67042.0,67041.0,0.001]
[1729525853011,0.091598,67042.0,67041.0,0.075599]
[1729525853505,0.089598,67042.0,67041.0,0.074599]
[1729525854094,0.093598,67042.0,67041.0,0.074599]
[1729525854904,0.074602,67039.0,67038.0,0.435402]
[1729525855099,0.074604,67037.0,67036.0,0.074804]